[Event "Rapid Tournament (RAP)"]
[Site "Biel, Switzerland"]
[Date "2026.07.12"]
[Round "6.33"]
[White "Wilhelm, Serge"]
[Black "Bachmann, Daniel"]
[Result "1-0"]
[TimeControl "15 + 5"]
[WhiteTitle "-"]
[BlackTitle "-"]
[WhiteFideId "1305808"]
[BlackFideId "1357492"]
[WhiteElo "1923"]
[BlackElo "1786"]

1. Nf3 {[%clk 00:15:08]} {[%emt 00:00:01]} d5 {[%clk 00:15:02]} {[%emt
00:00:11]} 2. g3 {[%clk 00:15:11]} Nf6 {[%clk 00:15:01]} {[%emt 00:00:07]} 3.
Bg2 {[%clk 00:15:15]} {[%emt 00:00:01]} Nbd7 {[%clk 00:14:59]} {[%emt
00:00:07]} 4. d3 {[%clk 00:15:16]} {[%emt 00:00:03]} e5 {[%clk 00:15:02]}
{[%emt 00:00:02]} 5. Nbd2 {[%clk 00:14:53]} {[%emt 00:00:28]} e4 {[%clk
00:14:19]} {[%emt 00:00:49]} 6. dxe4 {[%clk 00:14:36]} {[%emt 00:00:22]} dxe4
{[%clk 00:14:22]} {[%emt 00:00:02]} 7. Nd4 {[%clk 00:14:30]} {[%emt 00:00:10]}
Bc5 {[%clk 00:13:37]} {[%emt 00:00:51]} 8. N2b3 {[%clk 00:14:18]} {[%emt
00:00:17]} Bb6 {[%clk 00:13:31]} {[%emt 00:00:11]} 9. c3 {[%clk 00:14:02]}
{[%emt 00:00:21]} O-O {[%clk 00:13:07]} {[%emt 00:00:28]} 10. O-O {[%clk
00:13:49]} {[%emt 00:00:19]} Ne5 {[%clk 00:13:01]} {[%emt 00:00:11]} 11. Bg5
{[%clk 00:13:27]} {[%emt 00:00:26]} c5 {[%clk 00:12:40]} {[%emt 00:00:27]} 12.
Nc2 {[%clk 00:13:06]} {[%emt 00:00:25]} Bf5 {[%clk 00:12:10]} {[%emt 00:00:35]}
13. Ne3 {[%clk 00:12:07]} {[%emt 00:01:05]} Qc8 {[%clk 00:11:12]} {[%emt
00:01:03]} 14. Bxf6 {[%clk 00:11:16]} {[%emt 00:00:56]} gxf6 {[%clk 00:11:14]}
{[%emt 00:00:03]} 15. Nxf5 {[%clk 00:11:16]} {[%emt 00:00:04]} Qxf5 {[%clk
00:11:15]} {[%emt 00:00:05]} 16. Qc2 {[%clk 00:11:17]} {[%emt 00:00:03]} Ng4
{[%clk 00:08:31]} {[%emt 00:02:50]} 17. Qxe4 {[%clk 00:11:01]} {[%emt
00:00:20]} Qh5 {[%clk 00:08:13]} {[%emt 00:00:23]} 18. h3 {[%clk 00:10:55]}
{[%emt 00:00:11]} Nh6 {[%clk 00:07:34]} {[%emt 00:00:44]} 19. Qf3 {[%clk
00:10:32]} {[%emt 00:00:28]} Qg6 {[%clk 00:07:30]} {[%emt 00:00:10]} 20. Rfd1
{[%clk 00:10:12]} {[%emt 00:00:24]} Rfd8 {[%clk 00:07:21]} {[%emt 00:00:15]} 21.
Qe4 {[%clk 00:09:14]} {[%emt 00:01:03]} f5 {[%clk 00:06:59]} {[%emt 00:00:26]}
22. Qxb7 {[%clk 00:08:49]} {[%emt 00:00:31]} f4 {[%clk 00:06:08]} {[%emt
00:00:56]} 23. Qe4 {[%clk 00:07:59]} {[%emt 00:00:54]} fxg3 {[%clk 00:05:24]}
{[%emt 00:00:50]} 24. Qxg6+ {[%clk 00:08:02]} {[%emt 00:00:02]} hxg6 {[%clk
00:05:25]} {[%emt 00:00:03]} 25. Bxa8 {[%clk 00:07:55]} {[%emt 00:00:12]} Rxa8
{[%clk 00:05:21]} {[%emt 00:00:09]} 26. fxg3 {[%clk 00:07:58]} {[%emt
00:00:03]} c4+ {[%clk 00:05:25]} {[%emt 00:00:01]} 27. Nd4 {[%clk 00:08:02]}
Nf5 {[%clk 00:05:21]} {[%emt 00:00:09]} 28. Kf2 {[%clk 00:07:56]} {[%emt
00:00:09]} Rd8 {[%clk 00:05:19]} {[%emt 00:00:08]} 29. e3 {[%clk 00:07:52]}
{[%emt 00:00:09]} Nd6 {[%clk 00:05:07]} {[%emt 00:00:17]} 30. Kf3 {[%clk
00:07:18]} {[%emt 00:00:39]} Kg7 {[%clk 00:04:35]} {[%emt 00:00:37]} 31. Nc6
{[%clk 00:06:43]} {[%emt 00:00:40]} Rd7 {[%clk 00:04:38]} {[%emt 00:00:02]} 32.
Ne5 {[%clk 00:06:26]} {[%emt 00:00:23]} Re7 {[%clk 00:04:07]} {[%emt 00:00:37]}
33. Rxd6 {[%clk 00:06:14]} {[%emt 00:00:16]} Rxe5 {[%clk 00:04:10]} {[%emt
00:00:02]} 34. e4 {[%clk 00:06:07]} {[%emt 00:00:13]} f5 {[%clk 00:04:11]}
{[%emt 00:00:03]} 35. Re1 {[%clk 00:05:28]} {[%emt 00:00:44]} Kh6 {[%clk
00:03:32]} {[%emt 00:00:45]} 36. g4 {[%clk 00:05:03]} {[%emt 00:00:29]} fxg4+
{[%clk 00:03:08]} {[%emt 00:00:30]} 37. hxg4 {[%clk 00:05:03]} {[%emt
00:00:04]} Kg5 {[%clk 00:03:08]} {[%emt 00:00:05]} 38. Rd5 {[%clk 00:05:02]}
{[%emt 00:00:06]} Bc7 {[%clk 00:02:47]} {[%emt 00:00:27]} 39. Red1 {[%clk
00:04:54]} {[%emt 00:00:12]} Kh4 {[%clk 00:02:26]} {[%emt 00:00:26]} 40. Rxe5
{[%clk 00:04:57]} {[%emt 00:00:02]} Bxe5 {[%clk 00:02:29]} {[%emt 00:00:03]} 41.
Rd5 {[%clk 00:04:36]} {[%emt 00:00:27]} Bb8 {[%clk 00:01:21]} {[%emt 00:01:13]}
42. Rc5 {[%clk 00:04:34]} {[%emt 00:00:06]} Bd6 {[%clk 00:00:52]} {[%emt
00:00:34]} 43. Rxc4 {[%clk 00:04:37]} {[%emt 00:00:03]} a5 {[%clk 00:00:53]}
{[%emt 00:00:04]} 44. Ra4 {[%clk 00:04:35]} {[%emt 00:00:06]} Bc7 {[%clk
00:00:55]} {[%emt 00:00:04]} 45. b4 {[%clk 00:04:38]} {[%emt 00:00:02]} axb4
{[%clk 00:00:54]} {[%emt 00:00:05]} 46. cxb4 {[%clk 00:04:42]} {[%emt
00:00:02]} Bb6 {[%clk 00:00:44]} {[%emt 00:00:15]} 47. Ra6 {[%clk 00:04:43]}
{[%emt 00:00:03]} Bd8 {[%clk 00:00:26]} {[%emt 00:00:23]} 48. b5 {[%clk
00:04:46]} {[%emt 00:00:03]} Kh3 {[%clk 00:00:14]} {[%emt 00:00:17]} 49. Rxg6
{[%clk 00:04:26]} {[%emt 00:00:23]} Kh4 {[%clk 00:00:11]} {[%emt 00:00:09]} 50.
b6 {[%clk 00:04:26]} {[%emt 00:00:06]} 1-0

[Event "Rapid Tournament (RAP)"]
[Site "Biel, Switzerland"]
[Date "2026.07.12"]
[Round "6.34"]
[White "Aryan, Mehta"]
[Black "Pinelli, Gian"]
[Result "1/2-1/2"]
[TimeControl "15 + 5"]
[WhiteTitle "-"]
[BlackTitle "-"]
[WhiteFideId "33329664"]
[BlackFideId "1348710"]
[WhiteElo "1921"]
[BlackElo "1774"]

1. d4 {[%clk 00:15:09]} Nf6 {[%clk 00:15:08]} {[%emt 00:00:02]} 2. c4 {[%clk
00:15:13]} {[%emt 00:00:01]} g6 {[%clk 00:15:12]} {[%emt 00:00:04]} 3. Nc3
{[%clk 00:15:16]} d5 {[%clk 00:15:16]} {[%emt 00:00:02]} 4. Bg5 {[%clk
00:15:19]} {[%emt 00:00:01]} Bg7 {[%clk 00:15:16]} {[%emt 00:00:05]} 5. Bxf6
{[%clk 00:15:22]} {[%emt 00:00:03]} Bxf6 {[%clk 00:15:19]} {[%emt 00:00:02]} 6.
cxd5 {[%clk 00:15:25]} {[%emt 00:00:02]} c6 {[%clk 00:15:21]} {[%emt 00:00:03]}
7. e4 {[%clk 00:15:28]} {[%emt 00:00:01]} O-O {[%clk 00:14:32]} {[%emt
00:00:54]} 8. Nf3 {[%clk 00:11:13]} {[%emt 00:04:20]} cxd5 {[%clk 00:14:26]}
{[%emt 00:00:11]} 9. Nxd5 {[%clk 00:10:26]} {[%emt 00:00:52]} Nc6 {[%clk
00:14:21]} {[%emt 00:00:10]} 10. Nxf6+ {[%clk 00:10:28]} {[%emt 00:00:03]} exf6
{[%clk 00:14:24]} {[%emt 00:00:02]} 11. d5 {[%clk 00:10:06]} {[%emt 00:00:27]}
Qa5+ {[%clk 00:14:04]} {[%emt 00:00:25]} 12. Qd2 {[%clk 00:10:05]} {[%emt
00:00:06]} Nb4 {[%clk 00:13:36]} {[%emt 00:00:33]} 13. Rc1 {[%clk 00:09:06]}
{[%emt 00:01:05]} Re8 {[%clk 00:13:40]} {[%emt 00:00:01]} 14. Rc4 {[%clk
00:08:39]} {[%emt 00:00:31]} Bf5 {[%clk 00:12:16]} {[%emt 00:01:29]} 15. Qxb4
{[%clk 00:07:54]} {[%emt 00:00:50]} Qxd5 {[%clk 00:12:05]} {[%emt 00:00:16]} 16.
Be2 {[%clk 00:07:29]} {[%emt 00:00:29]} Bxe4 {[%clk 00:12:03]} {[%emt
00:00:08]} 17. O-O {[%clk 00:07:31]} {[%emt 00:00:03]} a5 {[%clk 00:12:01]}
{[%emt 00:00:07]} 18. Qc3 {[%clk 00:07:31]} {[%emt 00:00:06]} Qe6 {[%clk
00:11:48]} {[%emt 00:00:17]} 19. Nd4 {[%clk 00:06:40]} {[%emt 00:00:56]} Qe7
{[%clk 00:11:51]} {[%emt 00:00:02]} 20. Bf3 {[%clk 00:06:41]} {[%emt 00:00:04]}
Bxf3 {[%clk 00:11:44]} {[%emt 00:00:12]} 21. Nxf3 {[%clk 00:06:43]} {[%emt
00:00:02]} Rad8 {[%clk 00:11:47]} {[%emt 00:00:04]} 22. h3 {[%clk 00:06:40]}
{[%emt 00:00:08]} Qe2 {[%clk 00:11:50]} {[%emt 00:02:07]} 23. Rc7 {[%clk
00:03:08]} {[%emt 00:05:03]} b5 {[%clk 00:11:44]} {[%emt 00:00:10]} 24. Qxf6
{[%clk 00:02:49]} {[%emt 00:00:23]} Qxf1+ {[%clk 00:11:44]} {[%emt 00:00:07]}
25. Kh2 {[%clk 00:02:38]} {[%emt 00:00:16]} Rf8 {[%clk 00:11:47]} {[%emt
00:00:02]} 26. Rxf7 {[%clk 00:02:28]} {[%emt 00:00:15]} Rxf7 {[%clk 00:11:46]}
{[%emt 00:00:06]} 27. Qxd8+ {[%clk 00:02:32]} {[%emt 00:00:01]} Rf8 {[%clk
00:11:49]} {[%emt 00:00:02]} 28. Qd5+ {[%clk 00:02:35]} {[%emt 00:00:01]} Kh8
{[%clk 00:11:33]} {[%emt 00:00:20]} 29. Qe5+ {[%clk 00:02:29]} {[%emt
00:00:11]} Kg8 {[%clk 00:11:37]} {[%emt 00:00:03]} 30. Qd5+ {[%clk 00:02:23]}
{[%emt 00:00:11]} Kh8 {[%clk 00:11:40]} {[%emt 00:00:01]} 31. Qe5+ {[%clk
00:02:27]} {[%emt 00:00:02]} Kg8 {[%clk 00:11:43]} {[%emt 00:00:01]} 1/2-1/2

[Event "Rapid Tournament (RAP)"]
[Site "Biel, Switzerland"]
[Date "2026.07.12"]
[Round "6.35"]
[White "Gheorghiu, Harry"]
[Black "Materia, Mario"]
[Result "1-0"]
[TimeControl "15 + 5"]
[WhiteTitle "-"]
[BlackTitle "-"]
[WhiteFideId "1248839"]
[BlackFideId "651082241"]
[WhiteElo "1751"]
[BlackElo "1914"]

1. e4 {[%clk 00:15:07]} {[%emt 00:00:02]} e5 {[%clk 00:15:09]} {[%emt
00:00:01]} 2. Bc4 {[%clk 00:15:10]} {[%emt 00:00:04]} Nf6 {[%clk 00:15:02]}
{[%emt 00:00:11]} 3. d4 {[%clk 00:15:13]} {[%emt 00:00:02]} exd4 {[%clk
00:14:03]} {[%emt 00:01:03]} 4. e5 {[%clk 00:15:03]} {[%emt 00:00:16]} d5
{[%clk 00:13:22]} {[%emt 00:00:46]} 5. Qxd4 {[%clk 00:14:28]} {[%emt 00:00:39]}
Nc6 {[%clk 00:11:15]} {[%emt 00:02:13]} 6. Bb5 {[%clk 00:14:06]} {[%emt
00:00:27]} Ne4 {[%clk 00:10:22]} {[%emt 00:00:57]} 7. b4 {[%clk 00:11:30]}
{[%emt 00:02:42]} Qd7 {[%clk 00:08:41]} {[%emt 00:01:46]} 8. Bxc6 {[%clk
00:10:45]} {[%emt 00:00:50]} Qxc6 {[%clk 00:08:23]} {[%emt 00:00:23]} 9. c3
{[%clk 00:10:21]} {[%emt 00:00:29]} a5 {[%clk 00:07:55]} {[%emt 00:00:33]} 10.
f3 {[%clk 00:10:14]} {[%emt 00:00:11]} Nxc3 {[%clk 00:06:13]} {[%emt 00:01:48]}
11. Nxc3 {[%clk 00:09:58]} {[%emt 00:00:21]} Bxb4 {[%clk 00:05:42]} {[%emt
00:00:36]} 12. Bd2 {[%clk 00:10:01]} {[%emt 00:00:02]} Be6 {[%clk 00:05:33]}
{[%emt 00:00:14]} 13. Nge2 {[%clk 00:09:56]} {[%emt 00:00:09]} Qd7 {[%clk
00:04:21]} {[%emt 00:01:17]} 14. Qd3 {[%clk 00:09:00]} {[%emt 00:01:01]} O-O-O
{[%clk 00:04:09]} {[%emt 00:00:18]} 15. Qb5 {[%clk 00:07:42]} {[%emt 00:01:22]}
c6 {[%clk 00:03:53]} {[%emt 00:00:21]} 16. Qb6 {[%clk 00:07:13]} {[%emt
00:00:34]} Bf5 {[%clk 00:03:01]} {[%emt 00:00:58]} 17. Nd4 {[%clk 00:06:23]}
{[%emt 00:00:54]} Qe7 {[%clk 00:01:56]} {[%emt 00:01:11]} 18. Nxf5 {[%clk
00:03:53]} {[%emt 00:02:35]} Qxe5+ {[%clk 00:02:00]} {[%emt 00:00:01]} 19. Ne3
{[%clk 00:03:57]} {[%emt 00:00:02]} Bxc3 {[%clk 00:01:59]} {[%emt 00:00:06]} 20.
Bxc3 {[%clk 00:03:34]} {[%emt 00:00:28]} Qxc3+ {[%clk 00:02:01]} {[%emt
00:00:02]} 21. Kf2 {[%clk 00:03:38]} {[%emt 00:00:01]} d4 {[%clk 00:01:20]}
{[%emt 00:00:46]} 22. Ng4 {[%clk 00:03:07]} {[%emt 00:00:35]} Qd2+ {[%clk
00:01:15]} {[%emt 00:00:10]} 23. Kg3 {[%clk 00:03:07]} {[%emt 00:00:05]} h5
{[%clk 00:01:00]} {[%emt 00:00:21]} 24. Rab1 {[%clk 00:03:09]} {[%emt
00:00:03]} Rd7 {[%clk 00:00:50]} {[%emt 00:00:14]} 25. Rhd1 {[%clk 00:02:46]}
{[%emt 00:00:29]} Qg5 {[%clk 00:00:24]} {[%emt 00:00:31]} 26. Qa7 {[%clk
00:02:14]} {[%emt 00:00:37]} h4+ {[%clk 00:00:10]} {[%emt 00:00:18]} 27. Kh3
{[%clk 00:02:11]} {[%emt 00:00:09]} Kd8 {[%clk 00:00:09]} {[%emt 00:00:07]} 28.
Qa8+ {[%clk 00:01:55]} {[%emt 00:00:20]} Ke7 {[%clk 00:00:13]} {[%emt
00:00:02]} 29. Qxh8 {[%clk 00:01:58]} {[%emt 00:00:02]} f5 {[%clk 00:00:16]}
{[%emt 00:00:02]} 30. Re1+ {[%clk 00:01:51]} {[%emt 00:00:12]} Kd6 {[%clk
00:00:19]} {[%emt 00:00:02]} 31. Qf8+ {[%clk 00:01:45]} {[%emt 00:00:11]} Kc7
{[%clk 00:00:23]} {[%emt 00:00:01]} 32. Ne5 {[%clk 00:01:10]} {[%emt 00:00:40]}
Re7 {[%clk 00:00:08]} {[%emt 00:00:21]} 33. Nd3 {[%clk 00:00:43]} {[%emt
00:00:32]} Rxe1 {[%clk 00:00:08]} {[%emt 00:00:05]} 34. Rxe1 {[%clk 00:00:46]}
{[%emt 00:00:01]} Kb6 {[%clk 00:00:09]} {[%emt 00:00:05]} 35. Qe7 {[%clk
00:00:44]} {[%emt 00:00:06]} Qh5 {[%clk 00:00:09]} {[%emt 00:00:05]} 36. Qc5+
{[%clk 00:00:43]} {[%emt 00:00:06]} Ka6 {[%emt 00:00:02]} 37. Qc4+ {[%clk
00:00:44]} {[%emt 00:00:03]} Ka7 {[%clk 00:00:17]} {[%emt 00:00:02]} 38. Re7
{[%clk 00:00:40]} {[%emt 00:00:08]} f4 {[%clk 00:00:18]} {[%emt 00:00:04]} 39.
Qc5+ {[%clk 00:00:40]} {[%emt 00:00:05]} Qxc5 {[%clk 00:00:20]} {[%emt
00:00:04]} 40. Nxc5 {[%clk 00:00:44]} Kb6 {[%clk 00:00:24]} {[%emt 00:00:01]}
41. Ne4 {[%clk 00:00:47]} {[%emt 00:00:01]} d3 {[%clk 00:00:28]} 42. Rxg7
{[%clk 00:00:49]} {[%emt 00:00:02]} c5 {[%clk 00:00:33]} {[%emt 00:00:01]} 43.
Rg4 {[%clk 00:00:52]} {[%emt 00:00:02]} c4 {[%clk 00:00:37]} {[%emt 00:00:01]}
44. Rxf4 {[%clk 00:00:55]} {[%emt 00:00:02]} Kb5 {[%clk 00:00:38]} {[%emt
00:00:04]} 45. Rxh4 {[%clk 00:00:59]} {[%emt 00:00:01]} Kb4 {[%clk 00:00:40]}
{[%emt 00:00:04]} 46. Rh7 {[%clk 00:01:02]} {[%emt 00:00:01]} b5 {[%emt
00:00:07]} 47. Rd7 {[%clk 00:01:03]} {[%emt 00:00:03]} Ka3 {[%clk 00:00:38]}
{[%emt 00:00:07]} 48. Rd5 {[%clk 00:01:05]} {[%emt 00:00:02]} b4 {[%clk
00:00:30]} {[%emt 00:00:14]} 49. Rxa5+ {[%clk 00:01:08]} {[%emt 00:00:02]} Kb2
{[%clk 00:00:34]} 50. Rb5 {[%clk 00:01:10]} {[%emt 00:00:03]} c3 {[%clk
00:00:34]} {[%emt 00:00:05]} 51. Rxb4+ {[%clk 00:01:12]} {[%emt 00:00:03]} Kxa2
{[%clk 00:00:38]} {[%emt 00:00:02]} 52. Nxc3+ {[%clk 00:01:14]} {[%emt
00:00:02]} d2 {[%clk 00:00:41]} {[%emt 00:00:02]} 53. Rd4+ {[%clk 00:01:18]}
{[%emt 00:00:01]} 1-0

[Event "Rapid Tournament (RAP)"]
[Site "Biel, Switzerland"]
[Date "2026.07.12"]
[Round "6.36"]
[White "Ivarsson, Anders"]
[Black "Gunzinger, Severin"]
[Result "0-1"]
[TimeControl "15 + 5"]
[WhiteTitle "-"]
[BlackTitle "-"]
[WhiteFideId "1768158"]
[BlackFideId "1362518"]
[WhiteElo "1907"]
[BlackElo "1607"]

1. Nf3 {[%clk 00:15:09]} Nf6 {[%clk 00:15:07]} {[%emt 00:00:03]} 2. c4 {[%clk
00:15:13]} {[%emt 00:00:03]} g6 {[%clk 00:15:10]} 3. Nc3 {[%clk 00:15:15]}
{[%emt 00:00:04]} d5 {[%clk 00:15:12]} {[%emt 00:00:04]} 4. e3 {[%clk
00:14:52]} {[%emt 00:00:26]} Bg7 {[%clk 00:15:04]} {[%emt 00:00:14]} 5. cxd5
{[%clk 00:14:28]} {[%emt 00:00:29]} Nxd5 {[%clk 00:15:06]} {[%emt 00:00:03]} 6.
Qb3 {[%clk 00:14:23]} {[%emt 00:00:10]} Nb6 {[%clk 00:14:55]} {[%emt 00:00:16]}
7. d4 {[%clk 00:14:10]} {[%emt 00:00:17]} O-O {[%clk 00:14:53]} {[%emt
00:00:08]} 8. Be2 {[%clk 00:14:00]} {[%emt 00:00:15]} Na6 {[%clk 00:14:24]}
{[%emt 00:00:34]} 9. a3 {[%clk 00:13:29]} {[%emt 00:00:36]} Be6 {[%clk
00:14:00]} {[%emt 00:00:29]} 10. Qc2 {[%clk 00:13:28]} {[%emt 00:00:06]} c5
{[%clk 00:13:24]} {[%emt 00:00:41]} 11. Bxa6 {[%clk 00:13:19]} {[%emt
00:00:14]} bxa6 {[%clk 00:13:28]} {[%emt 00:00:02]} 12. dxc5 {[%clk 00:13:17]}
{[%emt 00:00:06]} Nd7 {[%clk 00:12:52]} {[%emt 00:00:41]} 13. b4 {[%clk
00:13:15]} {[%emt 00:00:07]} a5 {[%clk 00:12:37]} {[%emt 00:00:20]} 14. Bb2
{[%clk 00:13:06]} {[%emt 00:00:14]} axb4 {[%clk 00:12:20]} {[%emt 00:00:22]} 15.
axb4 {[%clk 00:13:09]} {[%emt 00:00:02]} a5 {[%clk 00:12:18]} {[%emt 00:00:08]}
16. Ng5 {[%clk 00:10:14]} {[%emt 00:02:59]} axb4 {[%clk 00:11:49]} {[%emt
00:00:35]} 17. Nxe6 {[%clk 00:09:54]} {[%emt 00:00:25]} Rxa1+ {[%clk 00:11:32]}
{[%emt 00:00:21]} 18. Bxa1 {[%clk 00:09:53]} {[%emt 00:00:05]} fxe6 {[%clk
00:11:32]} {[%emt 00:00:06]} 19. c6 {[%clk 00:09:18]} {[%emt 00:00:40]} bxc3
{[%clk 00:10:37]} {[%emt 00:01:00]} 20. cxd7 {[%clk 00:09:16]} {[%emt
00:00:07]} Qxd7 {[%clk 00:10:07]} {[%emt 00:00:35]} 21. O-O {[%clk 00:09:11]}
{[%emt 00:00:09]} Rd8 {[%clk 00:09:17]} {[%emt 00:00:55]} 22. Qb3 {[%clk
00:06:03]} {[%emt 00:03:14]} Kf7 {[%clk 00:08:11]} {[%emt 00:01:11]} 23. g3
{[%clk 00:05:30]} {[%emt 00:00:38]} Qd2 {[%clk 00:07:40]} {[%emt 00:00:36]} 24.
Qa3 {[%clk 00:04:56]} Bf6 {[%clk 00:06:35]} {[%emt 00:01:48]} 25. Rc1 {[%clk
00:03:58]} c2 {[%clk 00:04:42]} {[%emt 00:03:02]} 0-1

[Event "Rapid Tournament (RAP)"]
[Site "Biel, Switzerland"]
[Date "2026.07.12"]
[Round "6.37"]
[White "Boyer, Jean-Francois"]
[Black "Lachat, Pierre"]
[Result "0-1"]
[TimeControl "15 + 5"]
[WhiteTitle "-"]
[BlackTitle "-"]
[WhiteFideId "650226"]
[BlackFideId "1310763"]
[WhiteElo "1749"]
[BlackElo "1904"]

1. e4 {[%clk 00:15:05]} c5 {[%clk 00:15:05]} 2. Nf3 {[%clk 00:15:09]} {[%emt
00:51:08]} Nc6 {[%clk 00:15:10]} 3. d4 {[%clk 00:15:12]} {[%emt 00:00:04]} cxd4
{[%clk 00:15:13]} 4. Nxd4 {[%clk 00:15:15]} {[%emt 00:00:04]} d6 {[%clk
00:15:14]} 5. c4 {[%clk 00:14:53]} {[%emt 00:00:32]} g6 {[%clk 00:15:11]} 6.
Nc3 {[%clk 00:14:45]} {[%emt 00:00:20]} Bg7 {[%clk 00:15:14]} 7. Be3 {[%clk
00:14:29]} {[%emt 00:00:23]} Nf6 {[%clk 00:15:14]} 8. f3 {[%clk 00:13:49]}
{[%emt 00:00:50]} O-O {[%clk 00:15:14]} 9. Qd2 {[%clk 00:13:27]} {[%emt
00:00:33]} a6 {[%clk 00:15:14]} 10. Be2 {[%clk 00:12:55]} {[%emt 00:00:40]} Bd7
{[%clk 00:13:58]} 11. O-O {[%clk 00:12:54]} {[%emt 00:01:27]} Rb8 {[%clk
00:13:22]} 12. Rfd1 {[%clk 00:11:49]} {[%emt 00:01:52]} 0-1

[Event "Rapid Tournament (RAP)"]
[Site "Biel, Switzerland"]
[Date "2026.07.12"]
[Round "6.39"]
[White "Arntz, Christoph"]
[Black "Klopfenstein, Francois"]
[Result "1-0"]
[TimeControl "15 + 5"]
[WhiteTitle "-"]
[BlackTitle "-"]
[WhiteFideId "16257723"]
[BlackFideId "1303040"]
[WhiteElo "1999"]
[BlackElo "1815"]

1. f4 {[%clk 00:15:08]} {[%emt 00:00:01]} c5 {[%clk 00:14:43]} {[%emt
00:00:27]} 2. Nf3 {[%clk 00:15:02]} {[%emt 00:00:12]} d5 {[%clk 00:14:42]}
{[%emt 00:00:06]} 3. e3 {[%clk 00:15:04]} {[%emt 00:00:02]} Nc6 {[%clk
00:14:29]} {[%emt 00:00:18]} 4. d4 {[%clk 00:15:06]} {[%emt 00:00:03]} cxd4
{[%clk 00:12:15]} {[%emt 00:02:20]} 5. exd4 {[%clk 00:15:08]} {[%emt 00:00:03]}
Bg4 {[%clk 00:12:02]} {[%emt 00:00:17]} 6. c3 {[%clk 00:15:00]} {[%emt
00:00:14]} e6 {[%clk 00:11:58]} {[%emt 00:00:09]} 7. Bd3 {[%clk 00:14:21]}
{[%emt 00:00:43]} Be7 {[%clk 00:10:39]} {[%emt 00:01:24]} 8. O-O {[%clk
00:14:14]} {[%emt 00:00:13]} Nf6 {[%clk 00:10:39]} {[%emt 00:00:05]} 9. Nbd2
{[%clk 00:14:04]} {[%emt 00:00:15]} O-O {[%clk 00:09:28]} {[%emt 00:01:16]} 10.
Qe1 {[%clk 00:13:51]} {[%emt 00:00:18]} Ne8 {[%clk 00:06:50]} {[%emt 00:02:42]}
11. Ne5 {[%clk 00:13:17]} {[%emt 00:00:39]} Nxe5 {[%clk 00:06:47]} {[%emt
00:00:09]} 12. fxe5 {[%clk 00:13:09]} {[%emt 00:00:13]} Bh4 {[%clk 00:04:23]}
{[%emt 00:02:29]} 13. g3 {[%clk 00:12:49]} {[%emt 00:00:24]} Bg5 {[%clk
00:04:19]} {[%emt 00:00:09]} 14. Nf3 {[%clk 00:12:27]} {[%emt 00:00:26]} Bxc1
{[%clk 00:04:08]} {[%emt 00:00:18]} 15. Qxc1 {[%clk 00:12:18]} {[%emt
00:00:14]} f5 {[%clk 00:04:04]} {[%emt 00:00:09]} 16. exf6 {[%clk 00:11:55]}
{[%emt 00:00:28]} Nxf6 {[%clk 00:04:06]} {[%emt 00:00:02]} 17. Ne5 {[%clk
00:11:11]} {[%emt 00:00:49]} Qe7 {[%clk 00:03:21]} {[%emt 00:00:51]} 18. Qc2
{[%clk 00:10:04]} {[%emt 00:01:12]} Bh3 {[%clk 00:02:11]} {[%emt 00:01:14]} 19.
Rf2 {[%clk 00:09:03]} {[%emt 00:01:06]} Ne4 {[%clk 00:01:49]} {[%emt 00:00:27]}
20. Bxe4 {[%clk 00:07:51]} {[%emt 00:01:18]} Rxf2 {[%clk 00:01:33]} {[%emt
00:00:20]} 21. Bxh7+ {[%clk 00:07:46]} {[%emt 00:00:10]} Kh8 {[%clk 00:01:37]}
{[%emt 00:00:02]} 22. Kxf2 {[%clk 00:07:16]} {[%emt 00:00:34]} Rf8+ {[%clk
00:01:22]} {[%emt 00:00:21]} 23. Kg1 {[%clk 00:07:19]} {[%emt 00:00:02]} Qf6
{[%clk 00:01:19]} {[%emt 00:00:08]} 24. Ng6+ {[%clk 00:06:06]} {[%emt
00:01:18]} Kxh7 {[%clk 00:01:21]} {[%emt 00:00:02]} 25. Nxf8+ {[%clk 00:06:10]}
{[%emt 00:00:01]} Kg8 {[%clk 00:01:23]} {[%emt 00:00:04]} 26. Nd7 {[%clk
00:06:02]} {[%emt 00:00:13]} Qf3 {[%clk 00:00:41]} {[%emt 00:00:47]} 27. Qf2
{[%clk 00:05:36]} {[%emt 00:00:30]} 1-0